[Event "Balkan Youth Online-ch 2020"]
[Site "Online"]
[Date "2020.10.31"]
[Round "5.21"]
[White "Markov, Daniel"]
[Black "Dragicevic, Niksa"]
[Result "1-0"]
[ECO "C62"]
[WhiteElo "1386"]
[BlackElo "1068"]
[Annotator "NA"]
[PlyCount "133"]
[EventDate "2020.10.31"]
[EventType "swiss"]
[SourceTitle "playchess.com"]
[Source "ChessBase"]
[SourceQuality "1"]
[TimeControl "1500+5"]

1. e4 {[%emt 0:00:00]} e5 {[%emt 0:00:00]} 2. Nf3 {[%emt 0:00:00]} Nc6 {[%emt 0:00:00]} 3. Bb5 {[%emt 0:00:00]} d6 {[%emt 0:00:00]} 4. Bxc6+ {[%emt 0:00:00]} bxc6 {[%emt 0:00:00]} 5. d4 {[%emt 0:00:00]} exd4 {[%emt 0:00:43]} 6. Nxd4 {[%emt 0:00:00]} Bb7 {[%emt 0:00:06]} 7. Nc3 {[%emt 0:00:00]} Nf6 {[%emt 0:00:00]} 8. Bg5 {[%emt 0:00:00]} Be7 {[%emt 0:00:00]} 9. Qe2 {[%emt 0:08:10]} Nd7 {[%emt 0:01:46]} 10. Bxe7 {[%emt 0:01:36]} Qxe7 {[%emt 0:00:01]} 11. Nf5 {[%emt 0:01:42]} Qe5 {[%emt 0:00:32]} 12. f4 {[%emt 0:01:38]} Qf6 {[%emt 0:00:25]} 13. g4 {[%emt 0:01:02]} O-O {[%emt 0:03:14]} 14. h4 {[%emt 0:01:05]} g6 {[%emt 0:01:12]} 15. g5 {[%emt 0:00:16]} Qd8 {[%emt 0:00:02]} 16. Nh6+ {[%emt 0:00:30]} Kh8 {[%emt 0:00:00]} 17. h5 {[%emt 0:00:03]} d5 {[%emt 0:00:26]} 18. hxg6 {[%emt 0:00:22]} fxg6 {[%emt 0:00:01]} 19. exd5 {[%emt 0:01:39]} Qe8 {[%emt 0:00:32]} 20. O-O-O {[%emt 0:00:12]} Qxe2 {[%emt 0:00:09]} 21. Nxe2 {[%emt 0:00:00]} cxd5 {[%emt 0:00:06]} 22. Rh2 {[%emt 0:02:32]} Nb6 {[%emt 0:02:46]} 23. Ng4 {[%emt 0:02:06]} Nd7 {[%emt 0:00:44]} 24. Nh6 {[%emt 0:00:03]} Nb6 {[%emt 0:00:03]} 25. b3 {[%emt 0:00:27]} Rae8 {[%emt 0:00:50]} 26. Ng4 {[%emt 0:00:32]} Nd7 {[%emt 0:00:03]} 27. Nh6 {[%emt 0:00:00]} Nb6 {[%emt 0:00:00]} 28. Kd2 {[%emt 0:00:01]} Ba6 {[%emt 0:00:22]} 29. Ng4 {[%emt 0:00:50]} Bxe2 {[%emt 0:00:18]} 30. Nf6 {[%emt 0:00:05]} Re7 {[%emt 0:00:10]} 31. Rxe2 {[%emt 0:00:18]} Rxe2+ {[%emt 0:00:02]} 32. Kxe2 {[%emt 0:00:00]} c6 {[%emt 0:00:50]} 33. Rh1 {[%emt 0:00:02]} Rf7 {[%emt 0:00:03]} 34. Kd3 {[%emt 0:00:00]} Nd7 {[%emt 0:00:00]} 35. Nxd7 {[%emt 0:00:36]} Rxd7 {[%emt 0:00:00]} 36. Kd4 {[%emt 0:00:00]} Rc7 {[%emt 0:00:37]} 37. Kc5 {[%emt 0:00:00]} Rf7 {[%emt 0:00:19]} 38. Rf1 {[%emt 0:00:00]} Rf8 {[%emt 0:00:02]} 39. Kd6 {[%emt 0:00:00]} Kg7 {[%emt 0:00:00]} 40. Kxc6 {[%emt 0:00:00]} Rc8+ {[%emt 0:00:06]} 41. Kxd5 {[%emt 0:00:00]} Rxc2 {[%emt 0:00:00]} 42. Rf3 {[%emt 0:00:00]} Rd2+ {[%emt 0:00:03]} 43. Kc5 {[%emt 0:00:00]} Rxa2 {[%emt 0:00:08]} 44. b4 {[%emt 0:00:07]} Rc2+ {[%emt 0:00:00]} 45. Kb5 {[%emt 0:00:00]} Rc8 {[%emt 0:00:00]} 46. Ka6 {[%emt 0:00:00]} Rc7 {[%emt 0:00:00]} 47. b5 {[%emt 0:00:01]} Kf7 {[%emt 0:00:07]} 48. Rd3 {[%emt 0:00:07]} Ke6 {[%emt 0:00:10]} 49. Rd8 {[%emt 0:00:00]} Re7 {[%emt 0:01:09]} 50. Ra8 {[%emt 0:00:00]} Rf7 {[%emt 0:00:34]} 51. Rxa7 {[%emt 0:00:03]} Rxf4 {[%emt 0:00:00]} 52. b6 {[%emt 0:00:03]} Kd6 {[%emt 0:00:23]} 53. Rxh7 {[%emt 0:00:26]} Kc6 {[%emt 0:00:03]} 54. Rc7+ {[%emt 0:00:12]} Kd6 {[%emt 0:00:00]} 55. Ka7 {[%emt 0:00:09]} Rb4 {[%emt 0:00:13]} 56. Kb7 {[%emt 0:00:03]} Rb5 {[%emt 0:00:11]} 57. Rc6+ {[%emt 0:00:02]} Kd7 {[%emt 0:00:00]} 58. Rxg6 {[%emt 0:00:00]} Rc5 {[%emt 0:00:02]} 59. Rg7+ {[%emt 0:00:04]} Kd8 {[%emt 0:00:00]} 60. Kb8 {[%emt 0:00:05]} Rb5 {[%emt 0:00:02]} 61. b7 {[%emt 0:00:00]} Ra5 {[%emt 0:00:04]} 62. g6 {[%emt 0:00:00]} Ra1 {[%emt 0:00:04]} 63. Rc7 {[%emt 0:00:07]} Rg1 {[%emt 0:00:05]} 64. g7 {[%emt 0:00:00]} Rg2 {[%emt 0:00:08]} 65. g8=Q+ {[%emt 0:00:05]} Rxg8 {[%emt 0:00:00]} 66. Rc8+ {[%emt 0:00:00]} Kd7 {[%emt 0:00:04]} 67. Rxg8 {[%emt 0:00:00]} 1-0

[Event "Balkan Youth Online-ch 2020"]
[Site "Online"]
[Date "2020.10.31"]
[Round "5.24"]
[White "Creanga, Robert-Ionut"]
[Black "Zlatkov, Anton"]
[Result "1-0"]
[ECO "E89"]
[WhiteElo "2053"]
[BlackElo "2032"]
[Annotator "ChessBase"]
[PlyCount "59"]
[EventDate "2020.10.31"]
[EventType "swiss"]
[SourceTitle "playchess.com"]
[Source "ChessBase"]
[SourceQuality "1"]
[TimeControl "1500+5"]

1. d4 {[%emt 0:00:00]} Nf6 {[%emt 0:00:00]} 2. c4 {[%emt 0:00:00]} g6 {[%emt 0:00:00]} 3. f3 {[%emt 0:00:00]} Bg7 {[%emt 0:00:07]} 4. e4 {[%emt 0:00:00]} d6 {[%emt 0:00:00]} 5. Nc3 {[%emt 0:00:00]} O-O {[%emt 0:00:00]} 6. Be3 {[%emt 0:00:04]} e5 {[%emt 0:00:00]} 7. Nge2 {[%emt 0:00:29]} c6 {[%emt 0:00:02]} 8. d5 {[%emt 0:00:36]} cxd5 {[%emt 0:00:00]} 9. cxd5 {[%emt 0:00:00]} a6 {[%emt 0:00:00]} 10. g4 {[%emt 0:00:17]} b5 {[%emt 0:00:01]} 11. Ng3 {[%emt 0:00:04]} Nbd7 {[%emt 0:00:27]} 12. h4 {[%emt 0:01:55]} Nb6 {[%emt 0:01:03]} 13. h5 {[%emt 0:03:17]} Bd7 {[%emt 0:00:36]} 14. Qd2 {[%emt 0:01:52]} Rc8 {[%emt 0:05:05]} 15. g5 {[%emt 0:01:35]} Ne8 {[%emt 0:04:18]} 16. Qh2 {[%emt 0:00:17]} f6 {[%emt 0:02:13]} 17. hxg6 {[%emt 0:01:29]} hxg6 {[%emt 0:00:00]} 18. Qh7+ {[%emt 0:01:35]} Kf7 {[%emt 0:00:00]} 19. Rh6 {[%emt 0:00:11]} Ke7 {[%emt 0:04:54]} 20. Rxg6 {[%emt 0:01:20]} Rf7 {[%emt 0:00:48]} 21. Nh5 {[%emt 0:02:23]} Bf8 {[%emt 0:02:22]} 22. Qg8 {[%emt 0:02:47]} f5 {[%emt 0:00:01]} 23. Rf6 {[%emt 0:01:56]} Nxf6 {[%emt 0:02:18]} 24. gxf6+ {[%emt 0:00:02]} Ke8 {[%emt 0:01:20]} 25. Ng7+ {[%emt 0:00:18]} Rxg7 {[%emt 0:00:00]} 26. fxg7 {[%emt 0:00:00]} Qh4+ {[%emt 0:00:23]} 27. Bf2 {[%emt 0:00:00]} Qf6 {[%emt 0:00:00]} 28. gxf8=Q+ {[%emt 0:00:00]} Qxf8 {[%emt 0:00:00]} 29. Qxf8+ {[%emt 0:00:00]} Kxf8 {[%emt 0:00:00]} 30. Bxb6 {[%emt 0:00:00]} 1-0

[Event "Balkan Youth Online-ch 2020"]
[Site "Online"]
[Date "2020.10.31"]
[Round "5.25"]
[White "Erdogan, Tekin Alp"]
[Black "Stamatiou, Rodolfos"]
[Result "0-1"]
[ECO "D02"]
[WhiteElo "1828"]
[BlackElo "2015"]
[Annotator "ChessBase"]
[PlyCount "148"]
[EventDate "2020.10.31"]
[EventType "swiss"]
[SourceTitle "playchess.com"]
[Source "ChessBase"]
[SourceQuality "1"]
[TimeControl "1500+5"]

1. d4 {[%emt 0:00:00]} Nf6 {[%emt 0:00:00]} 2. Bf4 {[%emt 0:00:00]} d5 {[%emt 0:00:00]} 3. Nf3 {[%emt 0:00:01]} c5 {[%emt 0:00:00]} 4. e3 {[%emt 0:00:00]} Nc6 {[%emt 0:00:00]} 5. c3 {[%emt 0:00:00]} Qb6 {[%emt 0:00:00]} 6. Qc1 {[%emt 0:00:20]} Bf5 {[%emt 0:00:00]} 7. Be2 {[%emt 0:00:02]} h6 {[%emt 0:00:12]} 8. h3 {[%emt 0:00:00]} e6 {[%emt 0:00:01]} 9. O-O {[%emt 0:00:00]} g5 {[%emt 0:00:57]} 10. Bg3 {[%emt 0:01:10]} Ne4 {[%emt 0:00:07]} 11. Bh2 {[%emt 0:00:08]} h5 {[%emt 0:00:07]} 12. Nfd2 {[%emt 0:01:01]} cxd4 {[%emt 0:01:35]} 13. Nxe4 {[%emt 0:00:49]} Bxe4 {[%emt 0:00:48]} 14. exd4 {[%emt 0:00:04]} Rc8 {[%emt 0:00:19]} 15. Qd2 {[%emt 0:02:28]} g4 {[%emt 0:01:51]} 16. hxg4 {[%emt 0:02:42]} hxg4 {[%emt 0:00:50]} 17. Bxg4 {[%emt 0:00:29]} Bh6 {[%emt 0:03:32]} 18. Qe2 {[%emt 0:00:12]} Kd7 {[%emt 0:01:35]} 19. Nd2 {[%emt 0:06:11]} Bxd2 {[%emt 0:04:35]} 20. Qxd2 {[%emt 0:00:00]} Rcg8 {[%emt 0:02:12]} 21. Qf4 {[%emt 0:01:01]} Rh4 {[%emt 0:01:25]} 22. Qxf7+ {[%emt 0:02:35]} Ne7 {[%emt 0:00:00]} 23. f3 {[%emt 0:00:00]} Rgh8 {[%emt 0:02:40]} 24. fxe4 {[%emt 0:01:43]} Rxh2 {[%emt 0:00:34]} 25. Bh3 {[%emt 0:00:08]} R8xh3 {[%emt 0:01:39]} 26. gxh3 {[%emt 0:00:00]} Qxb2 {[%emt 0:00:00]} 27. Qf3 {[%emt 0:00:00]} dxe4 {[%emt 0:00:55]} 28. Qxe4 {[%emt 0:00:05]} Rxh3 {[%emt 0:00:07]} 29. Qf4 {[%emt 0:00:43]} Qxc3 {[%emt 0:00:59]} 30. Rac1 {[%emt 0:00:11]} Qg3+ {[%emt 0:00:15]} 31. Qxg3 {[%emt 0:00:00]} Rxg3+ {[%emt 0:00:00]} 32. Kf2 {[%emt 0:00:00]} Ra3 {[%emt 0:00:00]} 33. Ra1 {[%emt 0:00:00]} Nf5 {[%emt 0:00:00]} 34. Rfd1 {[%emt 0:00:00]} Kd6 {[%emt 0:00:00]} 35. Rd2 {[%emt 0:00:00]} Kd5 {[%emt 0:00:00]} 36. Rb1 {[%emt 0:00:00]} b6 {[%emt 0:00:30]} 37. Rb4 {[%emt 0:00:11]} Nd6 {[%emt 0:00:00]} 38. Ke1 {[%emt 0:02:21]} Nc4 {[%emt 0:00:07]} 39. Rh2 {[%emt 0:00:00]} Re3+ {[%emt 0:00:00]} 40. Kd1 {[%emt 0:00:02]} a5 {[%emt 0:00:01]} 41. Rb5+ {[%emt 0:01:18]} Kxd4 {[%emt 0:00:07]} 42. Rh4+ {[%emt 0:00:02]} Re4 {[%emt 0:00:01]} 43. Rh3 {[%emt 0:00:13]} Ne3+ {[%emt 0:00:11]} 44. Kd2 {[%emt 0:00:00]} Nc4+ {[%emt 0:00:00]} 45. Kd1 {[%emt 0:00:00]} Ne3+ {[%emt 0:00:00]} 46. Kc1 {[%emt 0:00:04]} Nd5 {[%emt 0:00:00]} 47. Rbb3 {[%emt 0:00:00]} Rg4 {[%emt 0:00:00]} 48. Rhd3+ {[%emt 0:00:00]} Kc5 {[%emt 0:00:00]} 49. Rd2 {[%emt 0:00:03]} Rg1+ {[%emt 0:00:01]} 50. Kb2 {[%emt 0:00:00]} a4 {[%emt 0:00:30]} 51. Rc2+ {[%emt 0:00:23]} Kd6 {[%emt 0:00:00]} 52. Rb5 {[%emt 0:00:00]} Rg3 {[%emt 0:00:00]} 53. Rc1 {[%emt 0:00:36]} Re3 {[%emt 0:00:17]} 54. Rc2 {[%emt 0:00:08]} a3+ {[%emt 0:00:08]} 55. Kc1 {[%emt 0:00:00]} Rg3 {[%emt 0:00:14]} 56. Kd1 {[%emt 0:00:28]} Ne3+ {[%emt 0:00:00]} 57. Kc1 {[%emt 0:00:00]} Nxc2 {[%emt 0:00:00]} 58. Kxc2 {[%emt 0:00:00]} Rg2+ {[%emt 0:00:00]} 59. Kc3 {[%emt 0:00:00]} Rb2 {[%emt 0:00:00]} 60. Rh5 {[%emt 0:00:08]} Rxa2 {[%emt 0:00:00]} 61. Kb3 {[%emt 0:00:00]} Ra1 {[%emt 0:00:00]} 62. Rg5 {[%emt 0:00:03]} Rc1 {[%emt 0:00:01]} 63. Kxa3 {[%emt 0:00:00]} Rc5 {[%emt 0:00:00]} 64. Rg4 {[%emt 0:00:00]} Kd5 {[%emt 0:00:00]} 65. Kb4 {[%emt 0:00:00]} e5 {[%emt 0:00:00]} 66. Rg6 {[%emt 0:00:00]} Rc6 {[%emt 0:00:00]} 67. Rg4 {[%emt 0:00:00]} e4 {[%emt 0:00:00]} 68. Rg1 {[%emt 0:00:15]} e3 {[%emt 0:00:00]} 69. Re1 {[%emt 0:00:00]} Ke4 {[%emt 0:00:00]} 70. Kb5 {[%emt 0:00:00]} Rc8 {[%emt 0:00:00]} 71. Kxb6 {[%emt 0:00:00]} Kf3 {[%emt 0:00:00]} 72. Rh1 {[%emt 0:00:00]} e2 {[%emt 0:00:00]} 73. Kb7 {[%emt 0:00:00]} Re8 {[%emt 0:00:00]} 74. Rh3+ {[%emt 0:00:00]} Kg2 {[%emt 0:00:00]} 0-1

[Event "Balkan Youth Online-ch 2020"]
[Site "Online"]
[Date "2020.10.31"]
[Round "5.26"]
[White "Yavuz, Efe Metehan"]
[Black "Gregoric, Andraz"]
[Result "1-0"]
[ECO "C68"]
[WhiteElo "1981"]
[BlackElo "2037"]
[Annotator "ChessBase"]
[PlyCount "73"]
[EventDate "2020.10.31"]
[EventType "swiss"]
[SourceTitle "playchess.com"]
[Source "ChessBase"]
[SourceQuality "1"]
[TimeControl "1500+5"]

1. e4 {[%emt 0:00:00]} e5 {[%emt 0:00:00]} 2. Nf3 {[%emt 0:00:00]} Nc6 {[%emt 0:00:00]} 3. Bb5 {[%emt 0:00:00]} a6 {[%emt 0:00:00]} 4. Bxc6 {[%emt 0:00:00]} dxc6 {[%emt 0:00:00]} 5. O-O {[%emt 0:00:00]} Qd6 {[%emt 0:00:42]} 6. Na3 {[%emt 0:00:00]} Be6 {[%emt 0:00:18]} 7. Qe2 {[%emt 0:00:00]} Be7 {[%emt 0:00:04]} 8. Rd1 {[%emt 0:00:38]} O-O-O {[%emt 0:00:05]} 9. c3 {[%emt 0:04:43]} Bg4 {[%emt 0:01:04]} 10. h3 {[%emt 0:01:13]} Bxf3 {[%emt 0:00:09]} 11. Qxf3 {[%emt 0:00:00]} Qd3 {[%emt 0:00:53]} 12. Qxf7 {[%emt 0:01:16]} Qxe4 {[%emt 0:00:06]} 13. d3 {[%emt 0:05:28]} Rxd3 {[%emt 0:01:04]} 14. Qe8+ {[%emt 0:00:13]} Rd8 {[%emt 0:03:41]} 15. Rxd8+ {[%emt 0:00:09]} Bxd8 {[%emt 0:00:00]} 16. Bg5 {[%emt 0:04:08]} Qd5 {[%emt 0:00:53]} 17. Nc4 {[%emt 0:01:23]} e4 {[%emt 0:00:29]} 18. Ne5 {[%emt 0:00:57]} h6 {[%emt 0:00:55]} 19. Bxd8 {[%emt 0:00:22]} Qxd8 {[%emt 0:00:22]} 20. Qxd8+ {[%emt 0:00:00]} Kxd8 {[%emt 0:00:00]} 21. Nf7+ {[%emt 0:00:00]} Ke8 {[%emt 0:00:00]} 22. Nxh8 {[%emt 0:00:00]} Ne7 {[%emt 0:00:00]} 23. Re1 {[%emt 0:00:00]} Kf8 {[%emt 0:00:00]} 24. Rxe4 {[%emt 0:00:00]} Kg8 {[%emt 0:00:00]} 25. Rxe7 {[%emt 0:00:00]} Kxh8 {[%emt 0:00:00]} 26. f4 {[%emt 0:00:00]} h5 {[%emt 0:00:00]} 27. f5 {[%emt 0:00:00]} a5 {[%emt 0:00:00]} 28. Kf2 {[%emt 0:00:00]} c5 {[%emt 0:00:00]} 29. Ke3 {[%emt 0:00:00]} b5 {[%emt 0:00:00]} 30. Kf4 {[%emt 0:00:00]} b4 {[%emt 0:00:00]} 31. Kg5 {[%emt 0:00:00]} Kh7 {[%emt 0:00:00]} 32. f6 {[%emt 0:00:00]} bxc3 {[%emt 0:00:00]} 33. bxc3 {[%emt 0:00:00]} c4 {[%emt 0:00:00]} 34. Rxg7+ {[%emt 0:00:00]} Kh8 {[%emt 0:00:00]} 35. Kg6 {[%emt 0:00:00]} h4 {[%emt 0:00:00]} 36. f7 {[%emt 0:00:00]} c5 {[%emt 0:00:00]} 37. Rg8# {[%emt 0:00:00]} 1-0

[Event "Balkan Youth Online-ch 2020"]
[Site "Online"]
[Date "2020.10.31"]
[Round "5.27"]
[White "Skrbec, Leon"]
[Black "Djurovic, Peko"]
[Result "0-1"]
[ECO "B33"]
[WhiteElo "1964"]
[BlackElo "2074"]
[Annotator "ChessBase"]
[PlyCount "74"]
[EventDate "2020.10.31"]
[EventType "swiss"]
[SourceTitle "playchess.com"]
[Source "ChessBase"]
[SourceQuality "1"]
[TimeControl "1500+5"]

1. e4 {[%emt 0:00:00]} c5 {[%emt 0:00:00]} 2. Nf3 {[%emt 0:00:00]} Nc6 {[%emt 0:00:00]} 3. d4 {[%emt 0:00:00]} cxd4 {[%emt 0:00:00]} 4. Nxd4 {[%emt 0:00:00]} Nf6 {[%emt 0:00:00]} 5. Nc3 {[%emt 0:00:00]} e5 {[%emt 0:00:00]} 6. Ndb5 {[%emt 0:00:00]} d6 {[%emt 0:00:00]} 7. Bg5 {[%emt 0:00:00]} a6 {[%emt 0:00:00]} 8. Na3 {[%emt 0:00:00]} b5 {[%emt 0:00:00]} 9. Nd5 {[%emt 0:00:00]} Be7 {[%emt 0:00:00]} 10. Bxf6 {[%emt 0:00:00]} Bxf6 {[%emt 0:00:00]} 11. c4 {[%emt 0:00:20]} b4 {[%emt 0:00:00]} 12. Nc2 {[%emt 0:00:00]} O-O {[%emt 0:00:39]} 13. g3 {[%emt 0:00:00]} Bg5 {[%emt 0:00:00]} 14. Bg2 {[%emt 0:00:05]} a5 {[%emt 0:00:00]} 15. O-O {[%emt 0:00:00]} Be6 {[%emt 0:00:00]} 16. b3 {[%emt 0:00:01]} Kh8 {[%emt 0:00:00]} 17. f4 {[%emt 0:00:49]} exf4 {[%emt 0:00:00]} 18. gxf4 {[%emt 0:00:00]} Bf6 {[%emt 0:00:00]} 19. Nxf6 {[%emt 0:00:02]} gxf6 {[%emt 0:00:17]} 20. Kh1 {[%emt 0:00:34]} Qc7 {[%emt 0:00:15]} 21. Qd2 {[%emt 0:00:22]} Rg8 {[%emt 0:00:10]} 22. Rad1 {[%emt 0:00:38]} Rad8 {[%emt 0:00:00]} 23. Ne3 {[%emt 0:00:23]} Rg7 {[%emt 0:00:19]} 24. f5 {[%emt 0:01:08]} Bc8 {[%emt 0:00:00]} 25. Nd5 {[%emt 0:00:00]} Qa7 {[%emt 0:00:07]} 26. Nxf6 {[%emt 0:00:29]} Ne5 {[%emt 0:00:00]} 27. Nh5 {[%emt 0:00:08]} Rg4 {[%emt 0:00:12]} 28. Qh6 {[%emt 0:00:47]} Qe7 {[%emt 0:01:03]} 29. h3 {[%emt 0:00:49]} Rxg2 {[%emt 0:01:12]} 30. Kxg2 {[%emt 0:00:10]} Rg8+ {[%emt 0:00:00]} 31. Kh1 {[%emt 0:00:02]} Ng4 {[%emt 0:00:36]} 32. hxg4 {[%emt 0:06:42]} Qxe4+ {[%emt 0:00:20]} 33. Kh2 {[%emt 0:00:11]} Qe2+ {[%emt 0:00:02]} 34. Rf2 {[%emt 0:00:40]} Qxf2+ {[%emt 0:00:00]} 35. Kh3 {[%emt 0:00:00]} Qf3+ {[%emt 0:00:06]} 36. Kh2 {[%emt 0:00:00]} Qe2+ {[%emt 0:00:00]} 37. Kh3 {[%emt 0:01:07]} Qxg4+ {[%emt 0:00:00]} 0-1

[Event "Balkan Youth Online-ch 2020"]
[Site "Online"]
[Date "2020.10.31"]
[Round "5.30"]
[White "Farmakoski, Georg"]
[Black "Herega, Nejc"]
[Result "0-1"]
[ECO "A46"]
[WhiteElo "1481"]
[BlackElo "2052"]
[Annotator "ChessBase"]
[PlyCount "100"]
[EventDate "2020.10.31"]
[EventType "swiss"]
[SourceTitle "playchess.com"]
[Source "ChessBase"]
[SourceQuality "1"]
[TimeControl "1500+5"]

1. d4 {[%emt 0:00:00]} Nf6 {[%emt 0:00:00]} 2. Nf3 {[%emt 0:00:00]} e6 {[%emt 0:00:16]} 3. g3 {[%emt 0:00:00]} d5 {[%emt 0:00:01]} 4. Bg2 {[%emt 0:00:00]} b5 {[%emt 0:00:14]} 5. O-O {[%emt 0:00:02]} Bb7 {[%emt 0:00:06]} 6. b3 {[%emt 0:00:00]} Bd6 {[%emt 0:00:03]} 7. Bb2 {[%emt 0:00:00]} O-O {[%emt 0:00:19]} 8. Nbd2 {[%emt 0:00:00]} Nbd7 {[%emt 0:00:33]} 9. Ne5 {[%emt 0:00:20]} Ne4 {[%emt 0:01:41]} 10. a4 {[%emt 0:01:18]} f6 {[%emt 0:01:45]} 11. Nxd7 {[%emt 0:02:06]} Qxd7 {[%emt 0:00:00]} 12. Nxe4 {[%emt 0:00:12]} dxe4 {[%emt 0:00:00]} 13. Ba3 {[%emt 0:00:32]} bxa4 {[%emt 0:01:05]} 14. Bxd6 {[%emt 0:00:01]} cxd6 {[%emt 0:00:00]} 15. Rxa4 {[%emt 0:00:03]} d5 {[%emt 0:00:32]} 16. Qd2 {[%emt 0:00:16]} Rfc8 {[%emt 0:00:53]} 17. Rc1 {[%emt 0:01:03]} Rc6 {[%emt 0:00:41]} 18. c4 {[%emt 0:00:10]} a6 {[%emt 0:01:52]} 19. e3 {[%emt 0:00:48]} Rac8 {[%emt 0:00:54]} 20. c5 {[%emt 0:00:05]} e5 {[%emt 0:00:00]} 21. Ra2 {[%emt 0:02:00]} f5 {[%emt 0:01:22]} 22. b4 {[%emt 0:00:41]} f4 {[%emt 0:02:26]} 23. exf4 {[%emt 0:00:42]} exf4 {[%emt 0:00:00]} 24. Qxf4 {[%emt 0:00:03]} Rf8 {[%emt 0:00:05]} 25. Qe3 {[%emt 0:00:16]} Rcf6 {[%emt 0:00:05]} 26. Rcc2 {[%emt 0:01:03]} Rf3 {[%emt 0:02:15]} 27. Qe1 {[%emt 0:03:38]} h5 {[%emt 0:02:17]} 28. Rc3 {[%emt 0:02:51]} R3f6 {[%emt 0:01:45]} 29. Rb2 {[%emt 0:03:41]} Bc6 {[%emt 0:00:07]} 30. Ra3 {[%emt 0:00:08]} Bb5 {[%emt 0:00:04]} 31. Re3 {[%emt 0:00:19]} h4 {[%emt 0:00:31]} 32. Qd1 {[%emt 0:00:34]} h3 {[%emt 0:00:47]} 33. Bf1 {[%emt 0:00:06]} Bxf1 {[%emt 0:00:00]} 34. Qxf1 {[%emt 0:00:04]} Qg4 {[%emt 0:00:13]} 35. Qe2 {[%emt 0:00:17]} Rxf2 {[%emt 0:01:25]} 36. Qxf2 {[%emt 0:00:11]} Rxf2 {[%emt 0:00:16]} 37. Kxf2 {[%emt 0:00:32]} Qd1 {[%emt 0:00:00]} 38. Reb3 {[%emt 0:01:17]} Qxd4+ {[%emt 0:00:18]} 39. Ke2 {[%emt 0:00:06]} Qc4+ {[%emt 0:00:09]} 40. Kd2 {[%emt 0:00:04]} d4 {[%emt 0:00:01]} 41. Ke1 {[%emt 0:00:11]} e3 {[%emt 0:00:16]} 42. Rb1 {[%emt 0:00:16]} d3 {[%emt 0:00:04]} 43. b5 {[%emt 0:00:01]} axb5 {[%emt 0:00:31]} 44. Rxb5 {[%emt 0:00:09]} Qc2 {[%emt 0:00:00]} 45. Rb8+ {[%emt 0:00:05]} Kh7 {[%emt 0:00:00]} 46. Rd1 {[%emt 0:00:09]} Qc3+ {[%emt 0:00:09]} 47. Kf1 {[%emt 0:00:00]} e2+ {[%emt 0:00:00]} 48. Kf2 {[%emt 0:00:00]} exd1=Q {[%emt 0:00:00]} 49. c6 {[%emt 0:00:00]} Qe2+ {[%emt 0:00:00]} 50. Kg1 {[%emt 0:00:00]} Qce1# {[%emt 0:00:00]} 0-1

[Event "Balkan Youth Online-ch 2020"]
[Site "Online"]
[Date "2020.10.31"]
[Round "5.31"]
[White "Xhembulla, Aleksander"]
[Black "Smirnov, Grigorii"]
[Result "1-0"]
[ECO "B19"]
[WhiteElo "1739"]
[BlackElo "1413"]
[Annotator "NA"]
[PlyCount "137"]
[EventDate "2020.10.31"]
[EventType "swiss"]
[SourceTitle "playchess.com"]
[Source "ChessBase"]
[SourceQuality "1"]
[TimeControl "1500+5"]

1. e4 {[%emt 0:00:00]} c6 {[%emt 0:00:02]} 2. d4 {[%emt 0:00:00]} d5 {[%emt 0:00:00]} 3. Nc3 {[%emt 0:00:00]} dxe4 {[%emt 0:00:00]} 4. Nxe4 {[%emt 0:00:00]} Bf5 {[%emt 0:00:00]} 5. Ng3 {[%emt 0:00:00]} Bg6 {[%emt 0:00:00]} 6. h4 {[%emt 0:00:00]} h6 {[%emt 0:00:00]} 7. Nf3 {[%emt 0:00:00]} Nd7 {[%emt 0:00:00]} 8. h5 {[%emt 0:00:00]} Bh7 {[%emt 0:00:00]} 9. Bd3 {[%emt 0:00:00]} Bxd3 {[%emt 0:00:00]} 10. Qxd3 {[%emt 0:00:00]} Ngf6 {[%emt 0:00:00]} 11. Bd2 {[%emt 0:00:00]} e6 {[%emt 0:00:00]} 12. O-O-O {[%emt 0:00:00]} Bd6 {[%emt 0:00:00]} 13. Ne4 {[%emt 0:00:44]} Nxe4 {[%emt 0:00:00]} 14. Qxe4 {[%emt 0:00:00]} Nf6 {[%emt 0:00:00]} 15. Qe2 {[%emt 0:00:01]} a5 {[%emt 0:00:00]} 16. c4 {[%emt 0:01:51]} a4 {[%emt 0:00:10]} 17. Ne5 {[%emt 0:03:12]} a3 {[%emt 0:00:41]} 18. b3 {[%emt 0:00:19]} Qc7 {[%emt 0:00:12]} 19. Kb1 {[%emt 0:00:18]} Nd7 {[%emt 0:01:01]} 20. Nxd7 {[%emt 0:00:43]} Qxd7 {[%emt 0:00:28]} 21. Qg4 {[%emt 0:01:47]} Bf8 {[%emt 0:01:43]} 22. Rhe1 {[%emt 0:01:02]} O-O-O {[%emt 0:00:41]} 23. Ba5 {[%emt 0:01:12]} Re8 {[%emt 0:00:01]} 24. d5 {[%emt 0:00:08]} e5 {[%emt 0:02:26]} 25. Qf3 {[%emt 0:02:52]} c5 {[%emt 0:05:31]} 26. Bd2 {[%emt 0:01:15]} Bd6 {[%emt 0:01:49]} 27. Bc1 {[%emt 0:00:13]} f5 {[%emt 0:00:14]} 28. Bxa3 {[%emt 0:01:00]} Rhf8 {[%emt 0:01:36]} 29. Qe2 {[%emt 0:01:35]} b6 {[%emt 0:00:55]} 30. Bb2 {[%emt 0:00:10]} Kc7 {[%emt 0:00:35]} 31. Bc3 {[%emt 0:00:30]} f4 {[%emt 0:00:23]} 32. g4 {[%emt 0:03:34]} f3 {[%emt 0:02:58]} 33. Qb2 {[%emt 0:00:37]} Qxg4 {[%emt 0:01:03]} 34. Rg1 {[%emt 0:01:12]} Qf5+ {[%emt 0:00:24]} 35. Ka1 {[%emt 0:00:02]} Re7 {[%emt 0:01:55]} 36. Qa3 {[%emt 0:00:48]} Kb7 {[%emt 0:00:07]} 37. Rg6 {[%emt 0:01:29]} Rf6 {[%emt 0:00:51]} 38. Rxf6 {[%emt 0:00:08]} Qxf6 {[%emt 0:00:49]} 39. Rg1 {[%emt 0:00:24]} Qf5 {[%emt 0:00:50]} 40. Rg6 {[%emt 0:00:26]} Qd7 {[%emt 0:00:07]} 41. Qb2 {[%emt 0:00:06]} Kc7 {[%emt 0:00:26]} 42. Qc2 {[%emt 0:00:30]} Qh3 {[%emt 0:00:06]} 43. Rxd6 {[%emt 0:00:11]} Kxd6 {[%emt 0:00:17]} 44. Qg6+ {[%emt 0:00:00]} Kd7 {[%emt 0:00:01]} 45. Qc6+ {[%emt 0:00:08]} Kd8 {[%emt 0:00:00]} 46. Qxb6+ {[%emt 0:00:02]} Ke8 {[%emt 0:00:06]} 47. Qg6+ {[%emt 0:00:06]} Kf8 {[%emt 0:00:11]} 48. d6 {[%emt 0:00:07]} Rd7 {[%emt 0:00:01]} 49. Bb2 {[%emt 0:00:03]} Qf1+ {[%emt 0:00:06]} 50. Qb1 {[%emt 0:00:00]} Qxb1+ {[%emt 0:00:02]} 51. Kxb1 {[%emt 0:00:00]} Rxd6 {[%emt 0:00:00]} 52. Bxe5 {[%emt 0:00:00]} Rd2 {[%emt 0:00:00]} 53. Bg3 {[%emt 0:00:00]} Kf7 {[%emt 0:00:02]} 54. a4 {[%emt 0:00:00]} Ke7 {[%emt 0:00:25]} 55. Kc1 {[%emt 0:00:09]} Ra2 {[%emt 0:00:00]} 56. Kb1 {[%emt 0:00:00]} Rd2 {[%emt 0:00:06]} 57. Kc1 {[%emt 0:00:00]} Rd8 {[%emt 0:00:04]} 58. Bh4+ {[%emt 0:00:00]} Kd7 {[%emt 0:00:00]} 59. Bxd8 {[%emt 0:00:00]} Kxd8 {[%emt 0:00:00]} 60. Kd2 {[%emt 0:00:00]} Kc7 {[%emt 0:00:00]} 61. Ke3 {[%emt 0:00:00]} Kb6 {[%emt 0:00:00]} 62. Kxf3 {[%emt 0:00:00]} Ka5 {[%emt 0:00:00]} 63. Ke4 {[%emt 0:00:00]} Kb4 {[%emt 0:00:00]} 64. Kd5 {[%emt 0:00:00]} Kxb3 {[%emt 0:00:00]} 65. a5 {[%emt 0:00:00]} Kc3 {[%emt 0:00:00]} 66. a6 {[%emt 0:00:00]} Kd2 {[%emt 0:00:00]} 67. a7 {[%emt 0:00:00]} Ke2 {[%emt 0:00:00]} 68. a8=Q {[%emt 0:00:00]} Kxf2 {[%emt 0:00:00]} 69. Qf8+ {[%emt 0:00:00]} 1-0